bitfinex-derivatives/quotes_SOLF0:USTF0_20250714
["timestamp","ask_amount","ask_price","bid_price","bid_amount"]
[1752492076863,0.05,167.41,167.38,3.56]
[1752492077269,5.9732,167.4,167.38,3.56]
[1752492077974,5.9732,167.4,167.38,9.5335]
[1752492078170,5.9727,167.41,167.39,3.56]
[1752492078375,0.05,167.43,167.39,3.56]
[1752492078772,5.9728,167.4,167.39,3.56]
[1752492084075,0.05,167.44,167.39,3.56]
[1752492084586,5.9728,167.4,167.39,3.56]
[1752492086475,0.05,167.4,167.31,3.56]
[1752492086676,3.19070644,167.37,167.31,3.56]
[1752492086886,3.19070644,167.37,167.32,5.9757]
[1752492087180,3.19070644,167.37,167.33,3.56]
[1752492087374,0.05,167.37,167.33,9.5352]
[1752492087572,0.04,167.38,167.32,3.31]
[1752492087979,5.9748,167.35,167.32,3.31]
[1752492088671,0.04,167.35,167.31,3.14070644]
[1752492088873,5.01401018,167.38,167.32,3.31]
[1752492089073,0.04,167.37,167.32,3.31]
[1752492089274,0.04,167.37,167.32,9.2856]
[1752492089475,0.04,167.37,167.33,3.31]
[1752492089673,3.14070644,167.37,167.28,3.14070644]
[1752492089883,5.9758,167.32,167.31,3.31]
[1752492090183,0.04,167.34,167.27,3.14070644]
[1752492090375,0.04,167.34,167.3,3.31]
[1752492090376,5.9761,167.31,167.3,3.31]
[1752492090573,0.04,167.34,167.3,3.31]
[1752492090775,3.14070644,167.35,167.3,3.31]
[1752492090977,5.9756,167.33,167.31,3.31]
[1752492091675,5.9759,167.32,167.3,3.31]
[1752492092887,5.9759,167.32,167.31,3.31]
[1752492093391,8.19471662,167.37,167.31,9.2858]
[1752492093585,0.04,167.36,167.32,3.31]
[1752492093887,5.975,167.34,167.32,3.31]
[1752492094283,5.9749,167.35,167.33,3.31]
[1752492094577,0.04,167.36,167.31,3.31]
[1752492094778,5.9752,167.34,167.31,9.2858]
[1752492094981,5.9752,167.34,167.32,3.31]
[1752492095180,5.9752,167.34,167.31,5.9758]
[1752492095181,3.14070644,167.36,167.31,3.31]
[1752492095379,0.04,167.35,167.31,3.31]
[1752492096182,5.9755,167.33,167.31,3.31]
[1752492096385,0.04,167.35,167.31,3.31]
[1752492096585,0.04,167.33,167.29,3.31]
[1752492097283,5.9763,167.31,167.29,3.31]
[1752492098091,5.9763,167.31,167.29,9.2868]
[1752492098294,5.9763,167.31,167.3,3.31]
[1752492098489,5.9758,167.32,167.3,3.31]
[1752492098694,8.19471662,167.36,167.3,5.9763]
[1752492098891,5.05401018,167.36,167.31,3.31]
[1752492099087,5.01401018,167.37,167.31,6.45070644]
[1752492099292,5.05401018,167.37,167.33,3.31]
[1752492099493,5.9743,167.36,167.33,3.31]
[1752492099692,0.04,167.38,167.33,6.45070644]
[1752492099887,0.04,167.38,167.34,3.31]
[1752492100394,5.01401018,167.39,167.35,3.31]
[1752492100588,6.0139,167.37,167.36,3.31]
[1752492101288,5.9749,167.35,167.34,3.31]
[1752492101591,6.0149,167.35,167.34,3.31]
[1752492101799,5.9749,167.35,167.34,3.31]
[1752492106205,5.9744,167.36,167.34,3.31]
[1752492106804,5.9747,167.35,167.34,3.31]
[1752492109305,5.9756,167.33,167.32,3.31]
[1752492111514,5.05401018,167.37,167.32,3.31]
[1752492111810,0.04,167.33,167.26,3.14070644]
[1752492112009,5.05401018,167.33,167.27,3.31]
[1752492112210,5.9766,167.3,167.28,3.31]
[1752492112517,0.04,167.32,167.28,3.31]
[1752492113310,5.9766,167.3,167.28,3.31]
[1752492113811,5.9768,167.29,167.28,3.31]
[1752492115404,3.18070644,167.32,167.28,3.31]
[1752492115612,0.04,167.32,167.28,3.31]
[1752492115909,5.9763,167.31,167.28,3.31]
[1752492116107,5.01401018,167.35,167.29,3.14070644]
[1752492116312,3.18070644,167.36,167.3,3.31]
[1752492116512,5.9759,167.32,167.3,3.31]
[1752492117212,0.04,167.36,167.29,3.14070644]
[1752492117419,0.04,167.36,167.2,21.79855689]
[1752492117420,8.19471662,167.38,167.31,6.45070644]
[1752492117619,8.19471662,167.38,167.32,3.29]
[1752492118121,8.15471662,167.38,167.33,3.29]
[1752492118414,5.05401018,167.39,167.34,3.29]
[1752492118608,5.9743,167.36,167.35,3.29]
[1752492120517,3.14070644,167.36,167.27,3.14070644]
[1752492120718,3.14070644,167.31,167.26,3.29]
[1752492120916,5.9775,167.27,167.19,11.9606]
[1752492121120,3.14070644,167.29,167.21,3.14070644]
[1752492121414,5.9787,167.24,167.22,9.2691]
[1752492121609,3.18070644,167.27,167.22,3.29]
[1752492122222,0.04,167.25,167.23,3.29]
[1752492122512,5.9787,167.24,167.23,3.29]
[1752492122715,0.04,167.24,167.16,3.29]
[1752492122907,0.04,167.24,167.16,6.43070644]
[1752492123113,0.04,167.24,167.17,3.29]
[1752492123310,5.9791,167.23,167.19,3.29]
[1752492123512,0.04,167.24,167.19,3.29]
[1752492123711,0.04,167.28,167.23,3.29]
[1752492123910,5.05401018,167.3,167.24,3.14070644]
[1752492124122,0.04,167.3,167.25,3.29]
[1752492124520,0.04,167.3,167.26,3.29]
[1752492124723,0.04,167.3,167.23,3.14070644]
[1752492125017,5.9771,167.28,167.24,3.29]
[1752492125822,5.9771,167.28,167.24,5.9785]
[1752492126122,0.04,167.3,167.25,6.43070644]
[1752492126319,3.14070644,167.32,167.25,5.9779]
[1752492126522,6.017,167.29,167.27,3.29]
[1752492127522,5.977,167.29,167.28,3.29]
[1752492129522,5.9775,167.27,167.26,3.29]
[1752492129723,0.04,167.29,167.23,3.14070644]
[1752492129922,0.04,167.29,167.27,3.29]
[1752492130124,6.0168,167.29,167.28,3.29]
[1752492130521,0.04,167.29,167.26,3.29]
[1752492130720,0.04,167.29,167.24,5.9784]
[1752492130721,0.04,167.29,167.25,3.29]
[1752492130921,5.9772,167.28,167.25,3.29]
[1752492131420,5.00877268,167.31,167.25,3.29]
[1752492131625,0.04,167.3,167.25,3.29]
[1752492131924,0.04,167.29,167.25,3.29]
[1752492132523,0.04,167.28,167.26,3.29]
[1752492132828,0.04,167.29,167.23,3.14070644]
[1752492133130,0.04,167.29,167.24,3.29]
[1752492133722,0.04,167.29,167.16,3.29]
[1752492133929,3.18070644,167.23,167.16,3.29]
[1752492134225,0.04,167.22,167.16,3.29]
[1752492134426,5.9802,167.2,167.15,3.29]
[1752492134624,3.14070644,167.21,167.15,3.29]
[1752492135019,3.19070644,167.19,167.15,3.29]
[1752492135221,3.14070644,167.19,167.15,3.29]
[1752492135725,3.14070644,167.19,167.16,3.29]
[1752492136027,3.19070644,167.19,167.17,3.29]
[1752492136929,5.9807,167.18,167.17,3.29]
[1752492138628,0.05,167.18,167.14,3.29]
[1752492138822,3.19070644,167.19,167.14,3.29]
[1752492139023,3.19070644,167.19,167.14,9.272]
[1752492139225,5.9813,167.17,167.15,3.29]
[1752492139428,3.19070644,167.19,167.15,3.29]
[1752492139732,5.9814,167.16,167.15,3.29]
[1752492140930,3.14070644,167.18,167.15,3.29]
[1752492141133,3.14070644,167.16,167.03,3.29]
[1752492141329,9.12340644,167.13,167.06,3.29]
[1752492141527,3.14070644,167.13,167.06,3.29]
[1752492141727,0.05,167.16,167.06,3.29]
[1752492141927,3.14070644,167.14,167.11,3.29]
[1752492142329,5.9827,167.13,167.11,3.29]
[1752492142832,9.12190644,167.17,167.13,5.9825]
[1752492143029,3.14070644,167.18,167.14,3.29]
[1752492143233,3.19070644,167.18,167.14,3.29]
[1752492143733,5.9811,167.17,167.14,3.29]
[1752492143932,3.14070644,167.18,167.14,3.29]
[1752492144138,3.14070644,167.2,167.16,5.9812]
[1752492144428,3.14070644,167.2,167.15,3.29]
[1752492144832,5.9804,167.19,167.16,3.29]
[1752492145035,3.14070644,167.2,167.16,3.29]
[1752492145232,5.9803,167.19,167.17,3.29]
[1752492145533,3.19070644,167.2,167.17,3.29]
[1752492145734,3.14070644,167.2,167.13,3.29]
[1752492146030,5.9806,167.19,167.16,5.9812]
[1752492146233,3.14070644,167.2,167.17,3.29]
[1752492146426,3.14070644,167.22,167.17,3.29]
[1752492146733,5.98,167.2,167.18,3.29]
[1752492147239,3.19070644,167.22,167.06,3.29]
[1752492147533,3.19070644,167.22,167.15,3.29]
[1752492147835,5.9802,167.2,167.16,5.9814]
[1752492148226,5.9803,167.2,167.16,5.9814]
[1752492148433,5.9803,167.2,167.17,3.29]
[1752492148734,0.05,167.22,167.19,3.29]
[1752492148937,0.05,167.27,167.2,3.29]
[1752492149132,3.19070644,167.27,167.2,3.29]
[1752492149334,5.9789,167.24,167.2,5.98]
[1752492149639,5.9789,167.24,167.21,3.29]
[1752492149836,3.14070644,167.27,167.21,3.29]
[1752492150035,0.05,167.26,167.21,9.2696]
[1752492150237,3.14070644,167.27,167.22,3.29]
[1752492150532,3.19070644,167.27,167.23,3.29]
[1752492150839,21.99424294,167.34,167.2,3.14070644]
[1752492150840,3.19070644,167.28,167.2,3.29]
[1752492151042,5.9784,167.25,167.22,5.979]
[1752492151236,5.9784,167.25,167.23,3.29]
[1752492151536,5.9784,167.25,167.24,3.29]
[1752492152839,0.05,167.3,167.25,3.29]
[1752492153744,5.9773,167.28,167.26,3.29]
[1752492154043,0.05,167.3,167.26,3.29]
[1752492154339,5.9771,167.28,167.27,3.29]
[1752492155744,3.19070644,167.32,167.27,3.29]
[1752492156043,3.14070644,167.32,167.27,3.29]
[1752492156239,5.977,167.29,167.27,3.29]
[1752492156843,5.9765,167.3,167.27,9.2674]
[1752492157045,3.14070644,167.32,167.28,3.29]
[1752492157241,0.05,167.31,167.29,3.29]
[1752492157545,5.9764,167.3,167.29,3.29]
[1752492159243,0.05,167.29,167.26,3.29]
[1752492159648,3.14070644,167.28,167.26,3.29]
[1752492160145,5.9775,167.27,167.26,3.29]
[1752492161948,6.69602862,167.33,167.26,3.29]
[1752492161949,0.05,167.34,167.27,3.29]
[1752492162456,0.05,167.34,167.25,3.29]
[1752492162640,3.14070644,167.3,167.25,3.29]
[1752492162947,5.977,167.29,167.26,3.29]
[1752492163347,5.9772,167.28,167.26,3.29]
[1752492163546,3.14070644,167.28,167.25,3.29]
[1752492163842,3.19070644,167.28,167.26,3.29]
[1752492164243,5.9775,167.27,167.26,3.29]
[1752492164444,0.05,167.27,167.24,3.29]
[1752492164645,3.14070644,167.26,167.25,3.29]
[1752492165040,5.9778,167.26,167.25,3.29]
[1752492165954,8.14947912,167.31,167.25,3.29]
[1752492166156,3.14070644,167.27,167.12,3.14070644]
[1752492166347,5.9788,167.24,167.2,5.9799]
[1752492166547,5.9788,167.24,167.21,3.29]
[1752492168150,5.979,167.23,167.21,3.29]
[1752492168358,3.14070644,167.25,167.21,3.29]
[1752492169156,5.9788,167.24,167.21,3.29]
[1752492169562,5.9789,167.23,167.21,3.29]
[1752492169959,3.14070644,167.25,167.21,3.29]
[1752492170156,3.18070644,167.25,167.21,3.29]
[1752492170947,5.9793,167.22,167.21,3.29]
[1752492173761,5.9791,167.23,167.21,3.29]
[1752492174358,5.9787,167.24,167.21,9.2693]
[1752492174558,5.9787,167.24,167.22,3.29]
[1752492175061,5.9789,167.23,167.22,3.29]
[1752492176559,3.14070644,167.27,167.22,3.29]
[1752492177168,5.04877268,167.29,167.23,3.29]
[1752492177369,3.14070644,167.27,167.23,3.29]
[1752492178574,5.9784,167.25,167.23,3.29]
[1752492178768,3.14070644,167.27,167.23,3.29]
[1752492179668,3.14070644,167.28,167.24,3.47]
[1752492179868,3.14070644,167.26,167.15,3.47]
[1752492180067,5.9788,167.24,167.19,3.14070644]
[1752492180367,5.9788,167.24,167.2,3.47]
[1752492180872,5.9788,167.24,167.19,3.14070644]
[1752492180873,5.979,167.23,167.22,3.47]
[1752492181578,3.19070644,167.24,167.14,3.14070644]
[1752492181780,3.14070644,167.22,167.17,5.981]
[1752492182076,5.9802,167.2,167.18,3.47]
[1752492182473,3.19070644,167.22,167.18,3.47]
[1752492182675,5.9803,167.19,167.18,3.47]
[1752492183276,3.14070644,167.22,167.18,3.47]
[1752492183576,3.19070644,167.22,167.18,3.47]
[1752492183780,5.9802,167.2,167.18,9.4507]
[1752492183975,5.9802,167.2,167.19,3.47]
[1752492186575,9.12090644,167.2,167.19,3.47]
[1752492188182,5.9802,167.2,167.19,3.47]
[1752492189480,3.19070644,167.2,167.12,3.14070644]
[1752492189782,3.19070644,167.2,167.15,5.9815]
[1752492189975,3.19070644,167.2,167.12,3.14070644]
[1752492189976,8.15698041,167.23,167.13,3.47]
[1752492190176,3.28,167.2,167.16,5.9812]
[1752492190370,3.28,167.2,167.17,3.47]
[1752492190574,6.42956127,167.19,167.12,3.47]
[1752492190880,3.28,167.18,167.15,3.47]
[1752492191074,5.9811,167.17,167.15,3.47]
[1752492191281,3.28,167.16,167.1,3.47]
[1752492192183,9.2615,167.16,167.1,3.47]
[1752492192383,3.28,167.16,167.13,5.9822]
[1752492192576,5.982,167.15,167.12,3.47]
[1752492192883,9.262,167.15,167.12,9.4526]
[1752492193078,5.9821,167.14,167.13,3.47]
[1752492193276,3.28,167.16,167.1,3.47]
[1752492193470,3.28,167.16,167.1,9.4534]
[1752492193676,5.9824,167.14,167.11,3.47]
[1752492193878,3.28,167.13,167.12,3.47]
[1752492195082,3.14956127,167.17,167.04,3.14956127]
[1752492195083,3.28,167.16,167.13,3.47]
[1752492196188,9.2621,167.14,167.11,5.983]
[1752492196373,3.14956127,167.17,167.0,13.0153017]
[1752492196374,3.14956127,167.15,167.0,13.0153017]
[1752492196578,5.9826,167.13,167.09,5.9836]
[1752492196775,5.9826,167.13,167.07,3.47]
[1752492196776,3.28,167.12,167.1,3.47]
[1752492196980,3.28,167.12,167.11,3.47]
[1752492197183,3.28,167.14,167.09,3.47]
[1752492197883,3.28,167.15,167.09,3.47]
[1752492198084,3.14956127,167.14,167.06,3.14956127]
[1752492198286,3.28,167.13,167.1,3.47]
[1752492198488,9.2632,167.11,167.1,3.47]
[1752492199087,3.28,167.11,167.1,3.47]
[1752492199286,3.28,167.13,167.1,3.47]
[1752492199781,3.28,167.12,167.11,3.47]
[1752492199978,3.28,167.18,167.11,3.47]
[1752492200180,3.28,167.18,167.17,3.47]
[1752492200690,5.9806,167.19,167.18,3.47]
[1752492200879,9.2606,167.19,167.18,3.47]
[1752492201386,3.28,167.19,167.05,3.47]
[1752492201588,3.14956127,167.18,167.12,3.47]
[1752492201787,3.28,167.17,167.13,3.47]
[1752492202386,5.982,167.15,167.13,3.47]
[1752492202584,3.28,167.14,167.13,3.47]
[1752492202984,9.2616,167.16,167.13,3.47]
[1752492203191,3.28,167.14,167.13,3.47]
[1752492203793,9.2621,167.14,167.13,3.47]
[1752492203985,3.28,167.14,167.08,3.14956127]
[1752492204287,9.2626,167.13,167.11,3.47]
[1752492204492,9.2626,167.13,167.12,3.47]
[1752492205289,5.9826,167.13,167.12,3.47]
[1752492206498,5.9822,167.14,167.12,3.47]
[1752492206699,3.28,167.15,167.12,9.4528]
[1752492206995,3.28,167.19,167.13,3.47]
[1752492207894,3.28,167.19,167.12,3.14956127]
[1752492207895,5.9819,167.15,167.12,9.13236127]
[1752492208090,5.9819,167.15,167.14,3.41]
[1752492208492,3.55,167.19,167.15,3.41]
[1752492208697,3.55,167.22,167.15,3.41]
[1752492208896,3.55,167.22,167.15,6.55956127]
[1752492209197,9.5312,167.17,167.16,3.41]
[1752492209399,3.55,167.19,167.16,3.41]
[1752492209697,8.15833395,167.24,167.18,3.41]
[1752492209892,3.59238075,167.19,167.16,0.04156551]
[1752492210294,9.5318,167.15,167.14,3.41]
[1752492210798,3.55,167.13,167.12,3.41]
[1752492211001,9.5325,167.13,167.12,3.41]
[1752492211298,3.55,167.13,167.12,3.41]
[1752492211494,5.9834,167.11,167.08,9.394]
[1752492211696,3.55,167.13,167.08,3.41]
[1752492211891,3.55,167.12,167.08,3.41]
[1752492212294,5.9834,167.11,167.08,3.41]
[1752492212488,9.5334,167.11,167.08,3.41]
[1752492212695,3.55,167.13,167.08,3.41]
[1752492212999,9.534,167.09,167.08,3.41]
[1752492213188,3.55,167.13,167.01,3.41]
[1752492213392,5.9837,167.1,167.07,9.3945]
[1752492213598,9.5337,167.1,167.09,3.41]
[1752492214400,3.55,167.12,167.09,6.55956127]
[1752492214591,3.55,167.11,167.1,3.41]
[1752492215093,0.04305628,167.12,167.1,3.41]
[1752492215294,3.55,167.11,167.1,3.41]
[1752492216000,6.02615628,167.12,167.1,3.41]
[1752492216200,9.57615628,167.12,167.11,3.41]
[1752492217901,0.04305628,167.12,167.11,3.41]
[1752492218598,6.02585628,167.12,167.11,3.41]
[1752492218799,0.04305628,167.12,167.11,3.41]
[1752492219001,3.59305628,167.12,167.11,3.41]
[1752492219200,3.59305628,167.12,167.09,0.04585022]
[1752492219904,9.5336,167.1,167.09,3.45585022]
[1752492220997,5.9836,167.1,167.09,3.45585022]
[1752492221203,3.59305628,167.12,167.09,3.45585022]
[1752492221505,3.59305628,167.12,167.1,3.41]
[1752492221506,3.55,167.11,167.1,3.41]
[1752492221702,9.5334,167.11,167.1,3.41]
[1752492222299,0.04305628,167.12,167.1,3.41]
[1752492222608,3.59305628,167.12,167.11,3.41]
[1752492222804,3.55,167.1,167.09,3.45585022]
[1752492223110,3.55,167.1,167.09,0.04585022]
[1752492223406,9.5336,167.1,167.09,0.04585022]
[1752492223802,3.59305628,167.12,167.09,3.45585022]
[1752492224100,9.5335,167.11,167.1,3.41]
[1752492224699,6.02605628,167.12,167.1,3.41]
[1752492224904,9.57605628,167.12,167.11,3.41]
[1752492225103,3.59305628,167.12,167.11,3.41]
[1752492225306,0.04305628,167.12,167.11,3.41]
[1752492228713,3.59305628,167.12,167.11,3.41]
[1752492229010,9.57585628,167.12,167.1,3.41]
[1752492229711,3.55,167.11,167.1,3.41]
[1752492231008,9.5332,167.11,167.1,3.41]
[1752492231315,3.55,167.11,167.09,0.04585022]
[1752492231519,5.9836,167.1,167.09,0.04585022]
[1752492231812,9.5336,167.1,167.09,3.45585022]
[1752492232812,3.55,167.1,167.09,3.45585022]
[1752492233112,0.04305628,167.12,167.11,3.41]
[1752492233312,3.59305628,167.12,167.11,3.41]
[1752492233614,9.57595628,167.12,167.11,3.41]
[1752492235407,3.59305628,167.12,167.11,3.41]
[1752492235612,0.04305628,167.12,167.11,6.55956127]
[1752492235911,6.02585628,167.12,167.11,3.41]
[1752492236112,0.04305628,167.12,167.11,3.41]
[1752492237712,0.04305628,167.12,167.11,9.3932]
[1752492238213,0.04305628,167.12,167.11,12.54276127]
[1752492239114,0.04305628,167.12,167.11,9.3932]
[1752492239411,0.04305628,167.12,167.11,12.54276127]
[1752492240506,3.6,167.15,167.14,3.36]
[1752492240711,3.6,167.16,167.14,3.36]
[1752492240916,9.5817,167.16,167.14,3.36]
[1752492241114,3.6,167.15,167.14,3.36]
[1752492242416,5.9817,167.16,167.13,9.17798963]
[1752492242619,3.6,167.16,167.15,3.36]
[1752492242917,3.6,167.19,167.16,3.36]
[1752492243119,3.6,167.18,167.17,3.36]
[1752492243321,3.6,167.17,167.16,3.36]
[1752492243516,3.6,167.17,167.12,3.36]
[1752492243717,8.60877268,167.17,167.16,0.03989348]
[1752492243913,9.5811,167.17,167.16,0.03989348]
[1752492244313,9.5811,167.17,167.16,3.39989348]
[1752492244714,9.5811,167.17,167.16,0.03989348]
[1752492247015,14.58987268,167.17,167.16,0.03989348]
[1752492247217,3.6,167.16,167.11,3.36]
[1752492247519,3.6,167.16,167.12,3.36]
[1752492247718,3.6,167.13,167.12,3.36]
[1752492247920,5.00877268,167.16,167.12,6.50956127]
[1752492248111,3.6,167.16,167.13,3.36]
[1752492248510,3.6,167.15,167.13,3.36]
[1752492248914,9.582,167.15,167.12,9.13236127]
[1752492249221,9.582,167.15,167.14,3.36]
[1752492251422,3.6,167.13,167.12,3.36]
[1752492251817,3.6,167.13,167.07,3.36]
[1752492252421,5.9837,167.1,167.08,3.36]
[1752492252616,9.5837,167.1,167.09,3.36]
[1752492252822,3.6,167.1,167.09,3.36]
[1752492253926,9.5836,167.1,167.09,3.36]
[1752492254127,3.6,167.1,167.09,3.36]
[1752492254625,9.5833,167.11,167.1,3.36]
[1752492254825,3.6,167.12,167.11,3.36]
[1752492255025,9.5828,167.12,167.11,3.36]
[1752492255326,3.6,167.12,167.08,9.13356127]
[1752492255518,3.6,167.11,167.09,3.36]
[1752492255723,5.9836,167.1,167.08,3.14956127]
[1752492256028,3.6,167.09,167.05,3.14956127]
[1752492256223,3.6,167.09,167.07,3.36]
[1752492256422,3.6,167.11,167.07,3.36]
[1752492256621,3.6,167.1,167.08,5.9841]
[1752492256819,5.9833,167.11,167.09,3.36]
[1752492257520,9.5833,167.11,167.1,3.36]
[1752492258224,5.00877268,167.14,166.98,18.67325045]
[1752492258225,5.00877268,167.12,166.98,18.67325045]
[1752492258426,3.6,167.08,167.07,3.36]
[1752492259227,9.5845,167.08,167.07,3.36]
[1752492262232,3.6,167.08,167.0,3.36]
[1752492262432,3.6,167.08,167.04,5.9857]
[1752492262728,5.9843,167.08,167.04,3.36]
[1752492262929,5.9843,167.08,167.05,5.9851]
[1752492263136,5.9843,167.08,167.06,3.36]
[1752492263330,3.6,167.11,167.06,3.36]
[1752492263633,3.6,167.11,167.08,5.9841]
[1752492263829,3.6,167.1,167.09,3.36]
[1752492264036,3.6,167.12,167.09,3.36]
[1752492264235,3.6,167.12,167.1,3.36]
[1752492264737,9.5831,167.12,167.1,3.36]
[1752492265334,5.9832,167.11,167.1,3.36]
[1752492265535,9.5832,167.11,167.1,3.36]
[1752492266931,5.00877268,167.14,167.09,3.36]
[1752492267133,3.6,167.13,167.08,3.36]
[1752492267437,3.6,167.13,167.09,3.15117897]
[1752492267631,3.46,167.15,167.1,3.37]
[1752492267931,3.46,167.13,167.07,3.15117897]
[1752492268136,3.46,167.13,167.1,3.37]
[1752492269038,9.4434,167.11,167.1,3.37]
[1752492271147,3.46,167.13,167.1,3.37]
[1752492271335,3.46,167.12,167.11,3.37]
[1752492271634,9.4431,167.12,167.11,3.37]
[1752492273338,9.4431,167.12,167.07,9.13567897]
[1752492273539,11.60807368,167.14,167.08,3.37]
[1752492273843,3.46,167.13,167.09,3.37]
[1752492274545,9.4439,167.1,167.09,3.37]
[1752492275546,3.46,167.11,167.09,3.37]
[1752492275845,3.46,167.11,167.1,3.37]
[1752492276542,9.4432,167.11,167.1,3.37]
[1752492277642,3.46,167.09,167.06,3.37]
[1752492277849,3.46,167.09,167.03,3.37]
[1752492278048,5.9849,167.07,167.05,3.37]
[1752492278347,3.46,167.07,167.06,3.37]
[1752492278644,9.4446,167.07,167.06,3.37]
[1752492280245,3.46,167.06,166.97,3.37]
[1752492280447,3.46,167.06,167.01,3.37]
[1752492280644,9.4447,167.07,167.04,5.9857]
[1752492280849,3.46,167.09,167.05,3.37]
[1752492281044,3.46,167.09,167.06,3.15384648]
[1752492281247,5.9843,167.08,167.07,3.37]
[1752492282952,9.4443,167.08,167.07,3.37]
[1752492283152,9.445,167.06,167.05,3.37]
[1752492283744,5.985,167.06,167.05,3.37]
[1752492285857,3.15384648,167.11,167.04,3.37]
[1752492285858,9.4454,167.05,167.04,3.37]
[1752492287852,3.46,167.04,167.01,3.37]
[1752492288051,3.46,167.04,167.01,9.3568]
[1752492288359,3.46,167.04,166.98,3.37]
[1752492288561,4.99689471,167.08,167.0,5.9871]
[1752492288756,5.9858,167.04,167.01,3.37]
[1752492288956,3.46,167.03,167.02,3.37]
[1752492289456,9.4461,167.03,167.02,3.37]
[1752492289654,3.46,167.04,166.98,3.37]
[1752492289856,3.46,167.0,166.97,3.37]
[1752492290559,9.4471,167.0,166.99,3.37]
[1752492290754,3.46,167.0,166.99,3.37]
[1752492290959,3.46,167.02,166.99,3.37]
[1752492291258,3.46,166.99,166.9,6.69785045]
[1752492291459,3.15384648,166.93,166.86,3.15384648]
[1752492291661,3.46,166.92,166.88,3.37]
[1752492291864,3.46,166.9,166.84,5.9928]
[1752492292158,3.46,166.86,166.76,3.37]
[1752492292356,3.46,166.84,166.78,3.37]
[1752492292950,5.27069344,166.88,166.79,5.27069344]
[1752492293262,3.46,166.85,166.77,5.27069344]
[1752492293456,3.46,166.87,166.81,5.27069344]
[1752492293756,3.46,166.87,166.82,3.37]
[1752492293955,3.46,166.86,166.82,3.37]
[1752492294152,3.46,166.91,166.84,3.37]
[1752492294354,3.46,166.88,166.75,3.37]
[1752492294557,3.46,166.88,166.79,3.37]
[1752492294761,3.46,166.87,166.83,3.37]
[1752492295259,3.50384699,166.87,166.83,3.37]
[1752492295456,3.50384699,166.87,166.79,3.37]
[1752492295657,3.46,166.86,166.83,0.04220348]
[1752492295856,5.9925,166.85,166.83,0.04220348]
[1752492296059,3.46,166.84,166.83,0.04220348]
[1752492296460,9.4529,166.84,166.83,0.04220348]
[1752492296666,3.46,166.84,166.77,3.37]
[1752492296863,3.46,166.83,166.77,5.27069344]
[1752492297063,5.27069344,166.87,166.77,5.27069344]
[1752492297267,5.27069344,166.85,166.78,3.37]
[1752492297470,3.52,166.84,166.78,3.37]
[1752492297663,5.9934,166.83,166.75,5.27069344]
[1752492297869,3.52,166.82,166.77,5.27069344]
[1752492298166,3.52,166.82,166.78,3.49]